Workbook

Sheet Overview
D1: Annual overview
D2: Name | E2: Susi Sorglos | G2: Year | H2: 2014
F4: Maximum values | G4: Average values | H4: Lowest values
D5: Systolic | E5: morning | F5: =MAX(January!$B$4:$B$34) -> 130 | G5: =AVERAGE(January!$B$4:$B$34) -> 130 | H5: =MIN(January!$B$4:$B$34) -> 130
E6: midday | F6: =MAX(January!$G$4:$G$34) -> 135 | G6: =AVERAGE(January!$G$4:$G$34) -> 135 | H6: =MIN(January!$G$4:$G$34) -> 135
E7: evening | F7: =MAX(January!$L$4:$L$34) -> 124 | G7: =AVERAGE(January!$L$4:$L$34) -> 124 | H7: =MIN(January!$L$4:$L$34) -> 124
D8: Diastolic | E8: morning | F8: =MAX(January!$C$4:$C$34) -> 80 | G8: =AVERAGE(January!$C$4:$C$34) -> 80 | H8: =MIN(January!$C$4:$C$34) -> 80
E9: midday | F9: =MAX(January!$H$4:$H$34) -> 90 | G9: =AVERAGE(January!$H$4:$H$34) -> 90 | H9: =MIN(January!$H$4:$H$34) -> 90
E10: evening | F10: =MAX(January!$M$4:$M$34) -> 85 | G10: =AVERAGE(January!$M$4:$M$34) -> 85 | H10: =MIN(January!$M$4:$M$34) -> 85
D11: Pulsee | E11: morning | F11: =MAX(January!$D$4:$D$34) -> 96 | G11: =AVERAGE(January!$D$4:$D$34) -> 96 | H11: =MIN(January!$D$4:$D$34) -> 96
E12: midday | F12: =MAX(January!$I$4:$I$34) -> 88 | G12: =AVERAGE(January!$I$4:$I$34) -> 88 | H12: =MIN(January!$I$4:$I$34) -> 88
E13: evening | F13: =MAX(January!$N$4:$N$34) -> 101 | G13: =AVERAGE(January!$N$4:$N$34) -> 101 | H13: =MIN(January!$N$4:$N$34) -> 101

Sheet January
A1: 1
A2: morning | F2: midday | K2: evening | Q2: Average values | R2: morning | S2: midday | T2: evening
A3: Day | B3: SYS | C3: DIA | D3: Pulsee | F3: Day | G3: SYS | H3: DIA | I3: Pulsee | K3: Day | L3: SYS | M3: DIA | N3: Pulsee | Q3: Systolic | R3: =AVERAGE($B$4:$B$34) -> 130 | S3: =AVERAGE($G$4:$G$34) -> 135 | T3: =AVERAGE($L$4:$L$34) -> 124
A4: =DATE(Overview!$B$2,January!A1,1) -> 1900-01-01 | B4: 130 | C4: 80 | D4: 96 | F4: =DATE(Overview!$B$2,January!$A$1,1) -> 1900-01-01 | G4: 135 | H4: 90 | I4: 88 | K4: =DATE(Overview!$B$2,January!$A$1,1) -> 1900-01-01 | L4: 124 | M4: 85 | N4: 101 | Q4: Diastolic | R4: =AVERAGE($C$4:$C$34) -> 80 | S4: =AVERAGE($H$4:$H$34) -> 90 | T4: =AVERAGE($M$4:$M$34) -> 85
A5: =A4+1 -> 1900-01-02 | F5: =F4+1 -> 1900-01-02 | K5: =K4+1 -> 1900-01-02 | Q5: Pulsee | R5: =AVERAGE($D$4:$D$34) -> 96 | S5: =AVERAGE($I$4:$I$34) -> 88 | T5: =AVERAGE($N$4:$N$34) -> 101
A6: 1900-01-03 | F6: 1900-01-03 | J6: 110 | K6: 1900-01-03
A7: 1900-01-04 | F7: 1900-01-04 | K7: 1900-01-04 | Q7: Highest values | R7: morning | S7: midday | T7: evening
A8: 1900-01-05 | F8: 1900-01-05 | K8: 1900-01-05 | Q8: Systolic | R8: =MAX($B$4:$B$34) -> 130 | S8: =MAX($G$4:$G$34) -> 135 | T8: =MAX($L$4:$L$34) -> 124
A9: 1900-01-06 | F9: 1900-01-06 | K9: 1900-01-06 | Q9: Diastolic | R9: =MAX($C$4:$C$34) -> 80 | S9: =MAX($H$4:$H$34) -> 90 | T9: =MAX($M$4:$M$34) -> 85
A10: 1900-01-07 | F10: 1900-01-07 | K10: 1900-01-07 | Q10: Pulsee | R10: =MAX($D$4:$D$34) -> 96 | S10: =MAX($I$4:$I$34) -> 88 | T10: =MAX($N$4:$N$34) -> 101
A11: 1900-01-08 | F11: 1900-01-08 | K11: 1900-01-08
A12: 1900-01-09 | F12: 1900-01-09 | K12: 1900-01-09 | Q12: Lowest values | R12: morning | S12: midday | T12: evening
A13: 1900-01-10 | F13: 1900-01-10 | K13: 1900-01-10 | Q13: Systolic | R13: =MIN($B$4:$B$34) -> 130 | S13: =MIN($G$4:$G$34) -> 135 | T13: =MIN($L$4:$L$34) -> 124
A14: 1900-01-11 | F14: 1900-01-11 | K14: 1900-01-11 | Q14: Diastolic | R14: =MIN($C$4:$C$34) -> 80 | S14: =MIN($H$4:$H$34) -> 90 | T14: =MIN($M$4:$M$34) -> 85
A15: 1900-01-12 | F15: 1900-01-12 | K15: 1900-01-12 | Q15: Pulsee | R15: =MIN($D$4:$D$34) -> 96 | S15: =MIN($I$4:$I$34) -> 88 | T15: =MIN($N$4:$N$34) -> 101
A16: 1900-01-13 | F16: 1900-01-13 | K16: 1900-01-13
A17: 1900-01-14 | F17: 1900-01-14 | K17: 1900-01-14
A18: 1900-01-15 | F18: 1900-01-15 | K18: 1900-01-15
A19: 1900-01-16 | F19: 1900-01-16 | K19: 1900-01-16
A20: 1900-01-17 | F20: 1900-01-17 | K20: 1900-01-17
A21: 1900-01-18 | F21: 1900-01-18 | K21: 1900-01-18
A22: 1900-01-19 | F22: 1900-01-19 | K22: 1900-01-19
A23: 1900-01-20 | F23: 1900-01-20 | K23: 1900-01-20
A24: 1900-01-21 | F24: 1900-01-21 | K24: 1900-01-21
A25: 1900-01-22 | F25: 1900-01-22 | K25: 1900-01-22
A26: 1900-01-23 | F26: 1900-01-23 | K26: 1900-01-23
A27: 1900-01-24 | F27: 1900-01-24 | K27: 1900-01-24
A28: 1900-01-25 | F28: 1900-01-25 | K28: 1900-01-25
A29: 1900-01-26 | F29: 1900-01-26 | K29: 1900-01-26
A30: 1900-01-27 | F30: 1900-01-27 | K30: 1900-01-27
A31: 1900-01-28 | F31: 1900-01-28 | K31: 1900-01-28
A32: 1900-01-29 | F32: 1900-01-29 | K32: 1900-01-29
A33: 1900-01-30 | F33: 1900-01-30 | K33: 1900-01-30
A34: 1900-01-31 | F34: 1900-01-31 | K34: 1900-01-31

Sheet February
A1: 1
A2: morning | F2: midday | K2: evening | Q2: Average values | R2: morning | S2: midday | T2: evening
A3: Day | B3: SYS | C3: DIA | D3: Pulse | F3: Day | G3: SYS | H3: DIA | I3: Pulse | K3: Day | L3: SYS | M3: DIA | N3: Pulse | Q3: Systolic | R3: =AVERAGE($B$4:$B$34) -> 129 | S3: =AVERAGE($G$4:$G$34) -> 134 | T3: =AVERAGE($L$4:$L$34) -> 120
A4: =DATE(Overview!$B$2,February!A1,1) -> 1900-01-01 | B4: 129 | C4: 85 | D4: 94 | F4: =DATE(Overview!$B$2,February!$A$1,1) -> 1900-01-01 | G4: 134 | H4: 82 | I4: 95 | K4: =DATE(Overview!$B$2,February!$A$1,1) -> 1900-01-01 | L4: 120 | M4: 76 | N4: 100 | Q4: Diastolic | R4: =AVERAGE($C$4:$C$34) -> 85 | S4: =AVERAGE($H$4:$H$34) -> 82 | T4: =AVERAGE($M$4:$M$34) -> 76
A5: =A4+1 -> 1900-01-02 | F5: =F4+1 -> 1900-01-02 | K5: =K4+1 -> 1900-01-02 | Q5: Pulsee | R5: =AVERAGE($D$4:$D$34) -> 94 | S5: =AVERAGE($I$4:$I$34) -> 95 | T5: =AVERAGE($N$4:$N$34) -> 100
A6: 1900-01-03 | F6: 1900-01-03 | J6: 110 | K6: 1900-01-03
A7: 1900-01-04 | F7: 1900-01-04 | K7: 1900-01-04 | Q7: Highest values | R7: morning | S7: midday | T7: evening
A8: 1900-01-05 | F8: 1900-01-05 | K8: 1900-01-05 | Q8: Systolic | R8: =MAX($B$4:$B$34) -> 129 | S8: =MAX($G$4:$G$34) -> 134 | T8: =MAX($L$4:$L$34) -> 120
A9: 1900-01-06 | F9: 1900-01-06 | K9: 1900-01-06 | Q9: Diastolic | R9: =MAX($C$4:$C$34) -> 85 | S9: =MAX($H$4:$H$34) -> 82 | T9: =MAX($M$4:$M$34) -> 76
A10: 1900-01-07 | F10: 1900-01-07 | K10: 1900-01-07 | Q10: Pulsee | R10: =MAX($D$4:$D$34) -> 94 | S10: =MAX($I$4:$I$34) -> 95 | T10: =MAX($N$4:$N$34) -> 100
A11: 1900-01-08 | F11: 1900-01-08 | K11: 1900-01-08
A12: 1900-01-09 | F12: 1900-01-09 | K12: 1900-01-09 | Q12: Lowest values | R12: morning | S12: midday | T12: evening
A13: 1900-01-10 | F13: 1900-01-10 | K13: 1900-01-10 | Q13: Systolic | R13: =MIN($B$4:$B$34) -> 129 | S13: =MIN($G$4:$G$34) -> 134 | T13: =MIN($L$4:$L$34) -> 120
A14: 1900-01-11 | F14: 1900-01-11 | K14: 1900-01-11 | Q14: Diastolic | R14: =MIN($C$4:$C$34) -> 85 | S14: =MIN($H$4:$H$34) -> 82 | T14: =MIN($M$4:$M$34) -> 76
A15: 1900-01-12 | F15: 1900-01-12 | K15: 1900-01-12 | Q15: Pulsee | R15: =MIN($D$4:$D$34) -> 94 | S15: =MIN($I$4:$I$34) -> 95 | T15: =MIN($N$4:$N$34) -> 100
A16: 1900-01-13 | F16: 1900-01-13 | K16: 1900-01-13
A17: 1900-01-14 | F17: 1900-01-14 | K17: 1900-01-14
A18: 1900-01-15 | F18: 1900-01-15 | K18: 1900-01-15
A19: 1900-01-16 | F19: 1900-01-16 | K19: 1900-01-16
A20: 1900-01-17 | F20: 1900-01-17 | K20: 1900-01-17
A21: 1900-01-18 | F21: 1900-01-18 | K21: 1900-01-18
A22: 1900-01-19 | F22: 1900-01-19 | K22: 1900-01-19
A23: 1900-01-20 | F23: 1900-01-20 | K23: 1900-01-20
A24: 1900-01-21 | F24: 1900-01-21 | K24: 1900-01-21
A25: 1900-01-22 | F25: 1900-01-22 | K25: 1900-01-22
A26: 1900-01-23 | F26: 1900-01-23 | K26: 1900-01-23
A27: 1900-01-24 | F27: 1900-01-24 | K27: 1900-01-24
A28: 1900-01-25 | F28: 1900-01-25 | K28: 1900-01-25
A29: 1900-01-26 | F29: 1900-01-26 | K29: 1900-01-26
A30: 1900-01-27 | F30: 1900-01-27 | K30: 1900-01-27
A31: 1900-01-28 | F31: 1900-01-28 | K31: 1900-01-28
A32: 1900-01-29 | F32: 1900-01-29 | K32: 1900-01-29
A33: 1900-01-30 | F33: 1900-01-30 | K33: 1900-01-30
A34: 1900-01-31 | F34: 1900-01-31 | K34: 1900-01-31

Sheet March
A1: 1
A2: morning | F2: midday | K2: evening | Q2: Average values | R2: morning | S2: midday | T2: evening
A3: Day | B3: SYS | C3: DIA | D3: Pulse | F3: Day | G3: SYS | H3: DIA | I3: Pulse | K3: Day | L3: SYS | M3: DIA | N3: Pulse | Q3: Systolic | R3: =AVERAGE($B$4:$B$34) -> 135 | S3: =AVERAGE($G$4:$G$34) -> 133 | T3: =AVERAGE($L$4:$L$34) -> 129
A4: =DATE(Overview!$B$2,March!A1,1) -> 1900-01-01 | B4: 135 | C4: 89 | D4: 89 | F4: =DATE(Overview!$B$2,March!$A$1,1) -> 1900-01-01 | G4: 133 | H4: 90 | I4: 100 | K4: =DATE(Overview!$B$2,March!$A$1,1) -> 1900-01-01 | L4: 129 | M4: 83 | N4: 80 | Q4: Diastolic | R4: =AVERAGE($C$4:$C$34) -> 89 | S4: =AVERAGE($H$4:$H$34) -> 90 | T4: =AVERAGE($M$4:$M$34) -> 83
A5: =A4+1 -> 1900-01-02 | F5: =F4+1 -> 1900-01-02 | K5: =K4+1 -> 1900-01-02 | Q5: Pulse | R5: =AVERAGE($D$4:$D$34) -> 89 | S5: =AVERAGE($I$4:$I$34) -> 100 | T5: =AVERAGE($N$4:$N$34) -> 80
A6: 1900-01-03 | F6: 1900-01-03 | J6: 110 | K6: 1900-01-03
A7: 1900-01-04 | F7: 1900-01-04 | K7: 1900-01-04 | Q7: Highest values | R7: morning | S7: midday | T7: evening
A8: 1900-01-05 | F8: 1900-01-05 | K8: 1900-01-05 | Q8: Systolic | R8: =MAX($B$4:$B$34) -> 135 | S8: =MAX($G$4:$G$34) -> 133 | T8: =MAX($L$4:$L$34) -> 129
A9: 1900-01-06 | F9: 1900-01-06 | K9: 1900-01-06 | Q9: Diastolic | R9: =MAX($C$4:$C$34) -> 89 | S9: =MAX($H$4:$H$34) -> 90 | T9: =MAX($M$4:$M$34) -> 83
A10: 1900-01-07 | F10: 1900-01-07 | K10: 1900-01-07 | Q10: Pulse | R10: =MAX($D$4:$D$34) -> 89 | S10: =MAX($I$4:$I$34) -> 100 | T10: =MAX($N$4:$N$34) -> 80
A11: 1900-01-08 | F11: 1900-01-08 | K11: 1900-01-08
A12: 1900-01-09 | F12: 1900-01-09 | K12: 1900-01-09 | Q12: Lowest values | R12: morning | S12: midday | T12: evening
A13: 1900-01-10 | F13: 1900-01-10 | K13: 1900-01-10 | Q13: Systolic | R13: =MIN($B$4:$B$34) -> 135 | S13: =MIN($G$4:$G$34) -> 133 | T13: =MIN($L$4:$L$34) -> 129
A14: 1900-01-11 | F14: 1900-01-11 | K14: 1900-01-11 | Q14: Diastolic | R14: =MIN($C$4:$C$34) -> 89 | S14: =MIN($H$4:$H$34) -> 90 | T14: =MIN($M$4:$M$34) -> 83
A15: 1900-01-12 | F15: 1900-01-12 | K15: 1900-01-12 | Q15: Pulse | R15: =MIN($D$4:$D$34) -> 89 | S15: =MIN($I$4:$I$34) -> 100 | T15: =MIN($N$4:$N$34) -> 80
A16: 1900-01-13 | F16: 1900-01-13 | K16: 1900-01-13
A17: 1900-01-14 | F17: 1900-01-14 | K17: 1900-01-14
A18: 1900-01-15 | F18: 1900-01-15 | K18: 1900-01-15
A19: 1900-01-16 | F19: 1900-01-16 | K19: 1900-01-16
A20: 1900-01-17 | F20: 1900-01-17 | K20: 1900-01-17
A21: 1900-01-18 | F21: 1900-01-18 | K21: 1900-01-18
A22: 1900-01-19 | F22: 1900-01-19 | K22: 1900-01-19
A23: 1900-01-20 | F23: 1900-01-20 | K23: 1900-01-20
A24: 1900-01-21 | F24: 1900-01-21 | K24: 1900-01-21
A25: 1900-01-22 | F25: 1900-01-22 | K25: 1900-01-22
A26: 1900-01-23 | F26: 1900-01-23 | K26: 1900-01-23
A27: 1900-01-24 | F27: 1900-01-24 | K27: 1900-01-24
A28: 1900-01-25 | F28: 1900-01-25 | K28: 1900-01-25
A29: 1900-01-26 | F29: 1900-01-26 | K29: 1900-01-26
A30: 1900-01-27 | F30: 1900-01-27 | K30: 1900-01-27
A31: 1900-01-28 | F31: 1900-01-28 | K31: 1900-01-28
A32: 1900-01-29 | F32: 1900-01-29 | K32: 1900-01-29
A33: 1900-01-30 | F33: 1900-01-30 | K33: 1900-01-30
A34: 1900-01-31 | F34: 1900-01-31 | K34: 1900-01-31

Sheet April
A1: 1
A2: morning | F2: midday | K2: evening | Q2: Average values | R2: morning | S2: midday | T2: evening
A3: Day | B3: SYS | C3: DIA | D3: Pulse | F3: Day | G3: SYS | H3: DIA | I3: Pulse | K3: Day | L3: SYS | M3: DIA | N3: Pulse | Q3: Systolic | R3: =AVERAGE($B$4:$B$34) -> 131 | S3: =AVERAGE($G$4:$G$34) -> 137 | T3: =AVERAGE($L$4:$L$34) -> 128
A4: =DATE(Overview!$B$2,April!A1,1) -> 1900-01-01 | B4: 131 | C4: 85 | D4: 95 | F4: =DATE(Overview!$B$2,April!$A$1,1) -> 1900-01-01 | G4: 137 | H4: 87 | I4: 87 | K4: =DATE(Overview!$B$2,April!$A$1,1) -> 1900-01-01 | L4: 128 | M4: 82 | N4: 99 | Q4: Diastolic | R4: =AVERAGE($C$4:$C$34) -> 85 | S4: =AVERAGE($H$4:$H$34) -> 87 | T4: =AVERAGE($M$4:$M$34) -> 82
A5: =A4+1 -> 1900-01-02 | F5: =F4+1 -> 1900-01-02 | K5: =K4+1 -> 1900-01-02 | Q5: Pulse | R5: =AVERAGE($D$4:$D$34) -> 95 | S5: =AVERAGE($I$4:$I$34) -> 87 | T5: =AVERAGE($N$4:$N$34) -> 99
A6: 1900-01-03 | F6: 1900-01-03 | J6: 110 | K6: 1900-01-03
A7: 1900-01-04 | F7: 1900-01-04 | K7: 1900-01-04 | Q7: Highest values | R7: morning | S7: midday | T7: evening
A8: 1900-01-05 | F8: 1900-01-05 | K8: 1900-01-05 | Q8: Systolic | R8: =MAX($B$4:$B$34) -> 131 | S8: =MAX($G$4:$G$34) -> 137 | T8: =MAX($L$4:$L$34) -> 128
A9: 1900-01-06 | F9: 1900-01-06 | K9: 1900-01-06 | Q9: Diastolic | R9: =MAX($C$4:$C$34) -> 85 | S9: =MAX($H$4:$H$34) -> 87 | T9: =MAX($M$4:$M$34) -> 82
A10: 1900-01-07 | F10: 1900-01-07 | K10: 1900-01-07 | Q10: Pulse | R10: =MAX($D$4:$D$34) -> 95 | S10: =MAX($I$4:$I$34) -> 87 | T10: =MAX($N$4:$N$34) -> 99
A11: 1900-01-08 | F11: 1900-01-08 | K11: 1900-01-08
A12: 1900-01-09 | F12: 1900-01-09 | K12: 1900-01-09 | Q12: Lowest values | R12: morning | S12: midday | T12: evening
A13: 1900-01-10 | F13: 1900-01-10 | K13: 1900-01-10 | Q13: Systolic | R13: =MIN($B$4:$B$34) -> 131 | S13: =MIN($G$4:$G$34) -> 137 | T13: =MIN($L$4:$L$34) -> 128
A14: 1900-01-11 | F14: 1900-01-11 | K14: 1900-01-11 | Q14: Diastolic | R14: =MIN($C$4:$C$34) -> 85 | S14: =MIN($H$4:$H$34) -> 87 | T14: =MIN($M$4:$M$34) -> 82
A15: 1900-01-12 | F15: 1900-01-12 | K15: 1900-01-12 | Q15: Pulse | R15: =MIN($D$4:$D$34) -> 95 | S15: =MIN($I$4:$I$34) -> 87 | T15: =MIN($N$4:$N$34) -> 99
A16: 1900-01-13 | F16: 1900-01-13 | K16: 1900-01-13
A17: 1900-01-14 | F17: 1900-01-14 | K17: 1900-01-14
A18: 1900-01-15 | F18: 1900-01-15 | K18: 1900-01-15
A19: 1900-01-16 | F19: 1900-01-16 | K19: 1900-01-16
A20: 1900-01-17 | F20: 1900-01-17 | K20: 1900-01-17
A21: 1900-01-18 | F21: 1900-01-18 | K21: 1900-01-18
A22: 1900-01-19 | F22: 1900-01-19 | K22: 1900-01-19
A23: 1900-01-20 | F23: 1900-01-20 | K23: 1900-01-20
A24: 1900-01-21 | F24: 1900-01-21 | K24: 1900-01-21
A25: 1900-01-22 | F25: 1900-01-22 | K25: 1900-01-22
A26: 1900-01-23 | F26: 1900-01-23 | K26: 1900-01-23
A27: 1900-01-24 | F27: 1900-01-24 | K27: 1900-01-24
A28: 1900-01-25 | F28: 1900-01-25 | K28: 1900-01-25
A29: 1900-01-26 | F29: 1900-01-26 | K29: 1900-01-26
A30: 1900-01-27 | F30: 1900-01-27 | K30: 1900-01-27
A31: 1900-01-28 | F31: 1900-01-28 | K31: 1900-01-28
A32: 1900-01-29 | F32: 1900-01-29 | K32: 1900-01-29
A33: 1900-01-30 | F33: 1900-01-30 | K33: 1900-01-30
A34: 1900-01-31 | F34: 1900-01-31 | K34: 1900-01-31

Sheet May
A1: 1
A2: morning | F2: midday | K2: evening | Q2: Average values | R2: morning | S2: midday | T2: evening
A3: Day | B3: SYS | C3: DIA | D3: Pulse | F3: Day | G3: SYS | H3: DIA | I3: Pulse | K3: Day | L3: SYS | M3: DIA | N3: Pulse | Q3: Systolic | R3: =AVERAGE($B$4:$B$34) -> 131 | S3: =AVERAGE($G$4:$G$34) -> 137 | T3: =AVERAGE($L$4:$L$34) -> 128
A4: =DATE(Overview!$B$2,May!A1,1) -> 1900-01-01 | B4: 131 | C4: 85 | D4: 95 | F4: =DATE(Overview!$B$2,May!$A$1,1) -> 1900-01-01 | G4: 137 | H4: 87 | I4: 87 | K4: =DATE(Overview!$B$2,May!$A$1,1) -> 1900-01-01 | L4: 128 | M4: 82 | N4: 99 | Q4: Diastolic | R4: =AVERAGE($C$4:$C$34) -> 85 | S4: =AVERAGE($H$4:$H$34) -> 87 | T4: =AVERAGE($M$4:$M$34) -> 82
A5: =A4+1 -> 1900-01-02 | F5: =F4+1 -> 1900-01-02 | K5: =K4+1 -> 1900-01-02 | Q5: Pulse | R5: =AVERAGE($D$4:$D$34) -> 95 | S5: =AVERAGE($I$4:$I$34) -> 87 | T5: =AVERAGE($N$4:$N$34) -> 99
A6: 1900-01-03 | F6: 1900-01-03 | J6: 110 | K6: 1900-01-03
A7: 1900-01-04 | F7: 1900-01-04 | K7: 1900-01-04 | Q7: Highest values | R7: morning | S7: midday | T7: evening
A8: 1900-01-05 | F8: 1900-01-05 | K8: 1900-01-05 | Q8: Systolic | R8: =MAX($B$4:$B$34) -> 131 | S8: =MAX($G$4:$G$34) -> 137 | T8: =MAX($L$4:$L$34) -> 128
A9: 1900-01-06 | F9: 1900-01-06 | K9: 1900-01-06 | Q9: Diastolic | R9: =MAX($C$4:$C$34) -> 85 | S9: =MAX($H$4:$H$34) -> 87 | T9: =MAX($M$4:$M$34) -> 82
A10: 1900-01-07 | F10: 1900-01-07 | K10: 1900-01-07 | Q10: Pulse | R10: =MAX($D$4:$D$34) -> 95 | S10: =MAX($I$4:$I$34) -> 87 | T10: =MAX($N$4:$N$34) -> 99
A11: 1900-01-08 | F11: 1900-01-08 | K11: 1900-01-08
A12: 1900-01-09 | F12: 1900-01-09 | K12: 1900-01-09 | Q12: Lowest values | R12: morning | S12: midday | T12: evening
A13: 1900-01-10 | F13: 1900-01-10 | K13: 1900-01-10 | Q13: Systolic | R13: =MIN($B$4:$B$34) -> 131 | S13: =MIN($G$4:$G$34) -> 137 | T13: =MIN($L$4:$L$34) -> 128
A14: 1900-01-11 | F14: 1900-01-11 | K14: 1900-01-11 | Q14: Diastolic | R14: =MIN($C$4:$C$34) -> 85 | S14: =MIN($H$4:$H$34) -> 87 | T14: =MIN($M$4:$M$34) -> 82
A15: 1900-01-12 | F15: 1900-01-12 | K15: 1900-01-12 | Q15: Pulse | R15: =MIN($D$4:$D$34) -> 95 | S15: =MIN($I$4:$I$34) -> 87 | T15: =MIN($N$4:$N$34) -> 99
A16: 1900-01-13 | F16: 1900-01-13 | K16: 1900-01-13
A17: 1900-01-14 | F17: 1900-01-14 | K17: 1900-01-14
A18: 1900-01-15 | F18: 1900-01-15 | K18: 1900-01-15
A19: 1900-01-16 | F19: 1900-01-16 | K19: 1900-01-16
A20: 1900-01-17 | F20: 1900-01-17 | K20: 1900-01-17
A21: 1900-01-18 | F21: 1900-01-18 | K21: 1900-01-18
A22: 1900-01-19 | F22: 1900-01-19 | K22: 1900-01-19
A23: 1900-01-20 | F23: 1900-01-20 | K23: 1900-01-20
A24: 1900-01-21 | F24: 1900-01-21 | K24: 1900-01-21
A25: 1900-01-22 | F25: 1900-01-22 | K25: 1900-01-22
A26: 1900-01-23 | F26: 1900-01-23 | K26: 1900-01-23
A27: 1900-01-24 | F27: 1900-01-24 | K27: 1900-01-24
A28: 1900-01-25 | F28: 1900-01-25 | K28: 1900-01-25
A29: 1900-01-26 | F29: 1900-01-26 | K29: 1900-01-26
A30: 1900-01-27 | F30: 1900-01-27 | K30: 1900-01-27
A31: 1900-01-28 | F31: 1900-01-28 | K31: 1900-01-28
A32: 1900-01-29 | F32: 1900-01-29 | K32: 1900-01-29
A33: 1900-01-30 | F33: 1900-01-30 | K33: 1900-01-30
A34: 1900-01-31 | F34: 1900-01-31 | K34: 1900-01-31

Sheet June
A1: 1
A2: morning | F2: midday | K2: evening | Q2: Average values | R2: morning | S2: midday
A3: Day | B3: SYS | C3: DIA | D3: Pulse | F3: Day | G3: SYS | H3: DIA | I3: Pulse | K3: Day | L3: SYS | M3: DIA | N3: Pulse | Q3: Systolic | R3: =AVERAGE($B$4:$B$34) -> 131 | S3: =AVERAGE($G$4:$G$34) -> 137 | T3: =AVERAGE($L$4:$L$34) -> 128
A4: =DATE(Overview!$B$2,June!A1,1) -> 1900-01-01 | B4: 131 | C4: 85 | D4: 95 | F4: =DATE(Overview!$B$2,June!$A$1,1) -> 1900-01-01 | G4: 137 | H4: 87 | I4: 87 | K4: =DATE(Overview!$B$2,June!$A$1,1) -> 1900-01-01 | L4: 128 | M4: 82 | N4: 99 | Q4: Diastolic | R4: =AVERAGE($C$4:$C$34) -> 85 | S4: =AVERAGE($H$4:$H$34) -> 87 | T4: =AVERAGE($M$4:$M$34) -> 82
A5: =A4+1 -> 1900-01-02 | F5: =F4+1 -> 1900-01-02 | K5: =K4+1 -> 1900-01-02 | Q5: Pulse | R5: =AVERAGE($D$4:$D$34) -> 95 | S5: =AVERAGE($I$4:$I$34) -> 87 | T5: =AVERAGE($N$4:$N$34) -> 99
A6: 1900-01-03 | F6: 1900-01-03 | J6: 110 | K6: 1900-01-03
A7: 1900-01-04 | F7: 1900-01-04 | K7: 1900-01-04 | Q7: Highest values | R7: morning | S7: midday | T7: evening
A8: 1900-01-05 | F8: 1900-01-05 | K8: 1900-01-05 | Q8: Systolic | R8: =MAX($B$4:$B$34) -> 131 | S8: =MAX($G$4:$G$34) -> 137 | T8: =MAX($L$4:$L$34) -> 128
A9: 1900-01-06 | F9: 1900-01-06 | K9: 1900-01-06 | Q9: Diastolic | R9: =MAX($C$4:$C$34) -> 85 | S9: =MAX($H$4:$H$34) -> 87 | T9: =MAX($M$4:$M$34) -> 82
A10: 1900-01-07 | F10: 1900-01-07 | K10: 1900-01-07 | Q10: Pulse | R10: =MAX($D$4:$D$34) -> 95 | S10: =MAX($I$4:$I$34) -> 87 | T10: =MAX($N$4:$N$34) -> 99
A11: 1900-01-08 | F11: 1900-01-08 | K11: 1900-01-08
A12: 1900-01-09 | F12: 1900-01-09 | K12: 1900-01-09 | Q12: Lowest values | R12: morning | S12: midday | T12: evening
A13: 1900-01-10 | F13: 1900-01-10 | K13: 1900-01-10 | Q13: Systolic | R13: =MIN($B$4:$B$34) -> 131 | S13: =MIN($G$4:$G$34) -> 137 | T13: =MIN($L$4:$L$34) -> 128
A14: 1900-01-11 | F14: 1900-01-11 | K14: 1900-01-11 | Q14: Diastolic | R14: =MIN($C$4:$C$34) -> 85 | S14: =MIN($H$4:$H$34) -> 87 | T14: =MIN($M$4:$M$34) -> 82
A15: 1900-01-12 | F15: 1900-01-12 | K15: 1900-01-12 | Q15: Pulse | R15: =MIN($D$4:$D$34) -> 95 | S15: =MIN($I$4:$I$34) -> 87 | T15: =MIN($N$4:$N$34) -> 99
A16: 1900-01-13 | F16: 1900-01-13 | K16: 1900-01-13
A17: 1900-01-14 | F17: 1900-01-14 | K17: 1900-01-14
A18: 1900-01-15 | F18: 1900-01-15 | K18: 1900-01-15
A19: 1900-01-16 | F19: 1900-01-16 | K19: 1900-01-16
A20: 1900-01-17 | F20: 1900-01-17 | K20: 1900-01-17
A21: 1900-01-18 | F21: 1900-01-18 | K21: 1900-01-18
A22: 1900-01-19 | F22: 1900-01-19 | K22: 1900-01-19
A23: 1900-01-20 | F23: 1900-01-20 | K23: 1900-01-20
A24: 1900-01-21 | F24: 1900-01-21 | K24: 1900-01-21
A25: 1900-01-22 | F25: 1900-01-22 | K25: 1900-01-22
A26: 1900-01-23 | F26: 1900-01-23 | K26: 1900-01-23
A27: 1900-01-24 | F27: 1900-01-24 | K27: 1900-01-24
A28: 1900-01-25 | F28: 1900-01-25 | K28: 1900-01-25
A29: 1900-01-26 | F29: 1900-01-26 | K29: 1900-01-26
A30: 1900-01-27 | F30: 1900-01-27 | K30: 1900-01-27
A31: 1900-01-28 | F31: 1900-01-28 | K31: 1900-01-28
A32: 1900-01-29 | F32: 1900-01-29 | K32: 1900-01-29
A33: 1900-01-30 | F33: 1900-01-30 | K33: 1900-01-30
A34: 1900-01-31 | F34: 1900-01-31 | K34: 1900-01-31

Sheet July
A1: 1
A2: morning | F2: midday | K2: evening | Q2: Average values | R2: morning | S2: midday | T2: evening
A3: Day | B3: SYS | C3: DIA | D3: Pulse | F3: Day | G3: SYS | H3: DIA | I3: Pulse | K3: Day | L3: SYS | M3: DIA | N3: Pulse | Q3: Systolic | R3: =AVERAGE($B$4:$B$34) -> 131 | S3: =AVERAGE($G$4:$G$34) -> 137 | T3: =AVERAGE($L$4:$L$34) -> 128
A4: =DATE(Overview!$B$2,July!A1,1) -> 1900-01-01 | B4: 131 | C4: 85 | D4: 95 | F4: =DATE(Overview!$B$2,July!$A$1,1) -> 1900-01-01 | G4: 137 | H4: 87 | I4: 87 | K4: =DATE(Overview!$B$2,July!$A$1,1) -> 1900-01-01 | L4: 128 | M4: 82 | N4: 99 | Q4: Diastolic | R4: =AVERAGE($C$4:$C$34) -> 85 | S4: =AVERAGE($H$4:$H$34) -> 87 | T4: =AVERAGE($M$4:$M$34) -> 82
A5: =A4+1 -> 1900-01-02 | F5: =F4+1 -> 1900-01-02 | K5: =K4+1 -> 1900-01-02 | Q5: Pulse | R5: =AVERAGE($D$4:$D$34) -> 95 | S5: =AVERAGE($I$4:$I$34) -> 87 | T5: =AVERAGE($N$4:$N$34) -> 99
A6: 1900-01-03 | F6: 1900-01-03 | J6: 110 | K6: 1900-01-03
A7: 1900-01-04 | F7: 1900-01-04 | K7: 1900-01-04 | Q7: Highest values | R7: morning | S7: midday | T7: evening
A8: 1900-01-05 | F8: 1900-01-05 | K8: 1900-01-05 | Q8: Systolic | R8: =MAX($B$4:$B$34) -> 131 | S8: =MAX($G$4:$G$34) -> 137 | T8: =MAX($L$4:$L$34) -> 128
A9: 1900-01-06 | F9: 1900-01-06 | K9: 1900-01-06 | Q9: Diastolic | R9: =MAX($C$4:$C$34) -> 85 | S9: =MAX($H$4:$H$34) -> 87 | T9: =MAX($M$4:$M$34) -> 82
A10: 1900-01-07 | F10: 1900-01-07 | K10: 1900-01-07 | Q10: Pulse | R10: =MAX($D$4:$D$34) -> 95 | S10: =MAX($I$4:$I$34) -> 87 | T10: =MAX($N$4:$N$34) -> 99
A11: 1900-01-08 | F11: 1900-01-08 | K11: 1900-01-08
A12: 1900-01-09 | F12: 1900-01-09 | K12: 1900-01-09 | Q12: Lowest values | R12: morning | S12: midday | T12: evening
A13: 1900-01-10 | F13: 1900-01-10 | K13: 1900-01-10 | Q13: Systolic | R13: =MIN($B$4:$B$34) -> 131 | S13: =MIN($G$4:$G$34) -> 137 | T13: =MIN($L$4:$L$34) -> 128
A14: 1900-01-11 | F14: 1900-01-11 | K14: 1900-01-11 | Q14: Diastolic | R14: =MIN($C$4:$C$34) -> 85 | S14: =MIN($H$4:$H$34) -> 87 | T14: =MIN($M$4:$M$34) -> 82
A15: 1900-01-12 | F15: 1900-01-12 | K15: 1900-01-12 | Q15: Pulse | R15: =MIN($D$4:$D$34) -> 95 | S15: =MIN($I$4:$I$34) -> 87 | T15: =MIN($N$4:$N$34) -> 99
A16: 1900-01-13 | F16: 1900-01-13 | K16: 1900-01-13
A17: 1900-01-14 | F17: 1900-01-14 | K17: 1900-01-14
A18: 1900-01-15 | F18: 1900-01-15 | K18: 1900-01-15
A19: 1900-01-16 | F19: 1900-01-16 | K19: 1900-01-16
A20: 1900-01-17 | F20: 1900-01-17 | K20: 1900-01-17
A21: 1900-01-18 | F21: 1900-01-18 | K21: 1900-01-18
A22: 1900-01-19 | F22: 1900-01-19 | K22: 1900-01-19
A23: 1900-01-20 | F23: 1900-01-20 | K23: 1900-01-20
A24: 1900-01-21 | F24: 1900-01-21 | K24: 1900-01-21
A25: 1900-01-22 | F25: 1900-01-22 | K25: 1900-01-22
A26: 1900-01-23 | F26: 1900-01-23 | K26: 1900-01-23
A27: 1900-01-24 | F27: 1900-01-24 | K27: 1900-01-24
A28: 1900-01-25 | F28: 1900-01-25 | K28: 1900-01-25
A29: 1900-01-26 | F29: 1900-01-26 | K29: 1900-01-26
A30: 1900-01-27 | F30: 1900-01-27 | K30: 1900-01-27
A31: 1900-01-28 | F31: 1900-01-28 | K31: 1900-01-28
A32: 1900-01-29 | F32: 1900-01-29 | K32: 1900-01-29
A33: 1900-01-30 | F33: 1900-01-30 | K33: 1900-01-30
A34: 1900-01-31 | F34: 1900-01-31 | K34: 1900-01-31

Sheet August
A1: 1
A2: morning | F2: midday | K2: evening | Q2: Average values | R2: morning | S2: midday | T2: evening
A3: Day | B3: SYS | C3: DIA | D3: Pulse | F3: Day | G3: SYS | H3: DIA | I3: Pulse | K3: Day | L3: SYS | M3: DIA | N3: Pulse | Q3: Systolic | R3: =AVERAGE($B$4:$B$34) -> 131 | S3: =AVERAGE($G$4:$G$34) -> 137 | T3: =AVERAGE($L$4:$L$34) -> 128
A4: =DATE(Overview!$B$2,August!A1,1) -> 1900-01-01 | B4: 131 | C4: 85 | D4: 95 | F4: =DATE(Overview!$B$2,August!$A$1,1) -> 1900-01-01 | G4: 137 | H4: 87 | I4: 87 | K4: =DATE(Overview!$B$2,August!$A$1,1) -> 1900-01-01 | L4: 128 | M4: 82 | N4: 99 | Q4: Diastolic | R4: =AVERAGE($C$4:$C$34) -> 85 | S4: =AVERAGE($H$4:$H$34) -> 87 | T4: =AVERAGE($M$4:$M$34) -> 82
A5: =A4+1 -> 1900-01-02 | F5: =F4+1 -> 1900-01-02 | K5: =K4+1 -> 1900-01-02 | Q5: Pulse | R5: =AVERAGE($D$4:$D$34) -> 95 | S5: =AVERAGE($I$4:$I$34) -> 87 | T5: =AVERAGE($N$4:$N$34) -> 99
A6: 1900-01-03 | F6: 1900-01-03 | J6: 110 | K6: 1900-01-03
A7: 1900-01-04 | F7: 1900-01-04 | K7: 1900-01-04 | Q7: Highest values | R7: morning | S7: midday | T7: evening
A8: 1900-01-05 | F8: 1900-01-05 | K8: 1900-01-05 | Q8: Systolic | R8: =MAX($B$4:$B$34) -> 131 | S8: =MAX($G$4:$G$34) -> 137 | T8: =MAX($L$4:$L$34) -> 128
A9: 1900-01-06 | F9: 1900-01-06 | K9: 1900-01-06 | Q9: Diastolic | R9: =MAX($C$4:$C$34) -> 85 | S9: =MAX($H$4:$H$34) -> 87 | T9: =MAX($M$4:$M$34) -> 82
A10: 1900-01-07 | F10: 1900-01-07 | K10: 1900-01-07 | Q10: Pulse | R10: =MAX($D$4:$D$34) -> 95 | S10: =MAX($I$4:$I$34) -> 87 | T10: =MAX($N$4:$N$34) -> 99
A11: 1900-01-08 | F11: 1900-01-08 | K11: 1900-01-08
A12: 1900-01-09 | F12: 1900-01-09 | K12: 1900-01-09 | Q12: Lowest values | R12: morning | S12: midday | T12: evening
A13: 1900-01-10 | F13: 1900-01-10 | K13: 1900-01-10 | Q13: Systolic | R13: =MIN($B$4:$B$34) -> 131 | S13: =MIN($G$4:$G$34) -> 137 | T13: =MIN($L$4:$L$34) -> 128
A14: 1900-01-11 | F14: 1900-01-11 | K14: 1900-01-11 | Q14: Diastolic | R14: =MIN($C$4:$C$34) -> 85 | S14: =MIN($H$4:$H$34) -> 87 | T14: =MIN($M$4:$M$34) -> 82
A15: 1900-01-12 | F15: 1900-01-12 | K15: 1900-01-12 | Q15: Pulse | R15: =MIN($D$4:$D$34) -> 95 | S15: =MIN($I$4:$I$34) -> 87 | T15: =MIN($N$4:$N$34) -> 99
A16: 1900-01-13 | F16: 1900-01-13 | K16: 1900-01-13
A17: 1900-01-14 | F17: 1900-01-14 | K17: 1900-01-14
A18: 1900-01-15 | F18: 1900-01-15 | K18: 1900-01-15
A19: 1900-01-16 | F19: 1900-01-16 | K19: 1900-01-16
A20: 1900-01-17 | F20: 1900-01-17 | K20: 1900-01-17
A21: 1900-01-18 | F21: 1900-01-18 | K21: 1900-01-18
A22: 1900-01-19 | F22: 1900-01-19 | K22: 1900-01-19
A23: 1900-01-20 | F23: 1900-01-20 | K23: 1900-01-20
A24: 1900-01-21 | F24: 1900-01-21 | K24: 1900-01-21
A25: 1900-01-22 | F25: 1900-01-22 | K25: 1900-01-22
A26: 1900-01-23 | F26: 1900-01-23 | K26: 1900-01-23
A27: 1900-01-24 | F27: 1900-01-24 | K27: 1900-01-24
A28: 1900-01-25 | F28: 1900-01-25 | K28: 1900-01-25
A29: 1900-01-26 | F29: 1900-01-26 | K29: 1900-01-26
A30: 1900-01-27 | F30: 1900-01-27 | K30: 1900-01-27
A31: 1900-01-28 | F31: 1900-01-28 | K31: 1900-01-28
A32: 1900-01-29 | F32: 1900-01-29 | K32: 1900-01-29
A33: 1900-01-30 | F33: 1900-01-30 | K33: 1900-01-30
A34: 1900-01-31 | F34: 1900-01-31 | K34: 1900-01-31

Sheet September
A1: 1
A2: morning | F2: midday | K2: evening | Q2: Average values | R2: morning | S2: midday | T2: evening
A3: Day | B3: SYS | C3: DIA | D3: Pulse | F3: Day | G3: SYS | H3: DIA | I3: Pulse | K3: Day | L3: SYS | M3: DIA | N3: Pulse | Q3: Systolic | R3: =AVERAGE($B$4:$B$34) -> 131 | S3: =AVERAGE($G$4:$G$34) -> 137 | T3: =AVERAGE($L$4:$L$34) -> 128
A4: =DATE(Overview!$B$2,September!A1,1) -> 1900-01-01 | B4: 131 | C4: 85 | D4: 95 | F4: =DATE(Overview!$B$2,September!$A$1,1) -> 1900-01-01 | G4: 137 | H4: 87 | I4: 87 | K4: =DATE(Overview!$B$2,September!$A$1,1) -> 1900-01-01 | L4: 128 | M4: 82 | N4: 99 | Q4: Diastolic | R4: =AVERAGE($C$4:$C$34) -> 85 | S4: =AVERAGE($H$4:$H$34) -> 87 | T4: =AVERAGE($M$4:$M$34) -> 82
A5: =A4+1 -> 1900-01-02 | F5: =F4+1 -> 1900-01-02 | K5: =K4+1 -> 1900-01-02 | Q5: Pulse | R5: =AVERAGE($D$4:$D$34) -> 95 | S5: =AVERAGE($I$4:$I$34) -> 87 | T5: =AVERAGE($N$4:$N$34) -> 99
A6: 1900-01-03 | F6: 1900-01-03 | J6: 110 | K6: 1900-01-03
A7: 1900-01-04 | F7: 1900-01-04 | K7: 1900-01-04 | Q7: Highest values | R7: morning | S7: midday | T7: evening
A8: 1900-01-05 | F8: 1900-01-05 | K8: 1900-01-05 | Q8: Systolic | R8: =MAX($B$4:$B$34) -> 131 | S8: =MAX($G$4:$G$34) -> 137 | T8: =MAX($L$4:$L$34) -> 128
A9: 1900-01-06 | F9: 1900-01-06 | K9: 1900-01-06 | Q9: Diastolic | R9: =MAX($C$4:$C$34) -> 85 | S9: =MAX($H$4:$H$34) -> 87 | T9: =MAX($M$4:$M$34) -> 82
A10: 1900-01-07 | F10: 1900-01-07 | K10: 1900-01-07 | Q10: Pulse | R10: =MAX($D$4:$D$34) -> 95 | S10: =MAX($I$4:$I$34) -> 87 | T10: =MAX($N$4:$N$34) -> 99
A11: 1900-01-08 | F11: 1900-01-08 | K11: 1900-01-08
A12: 1900-01-09 | F12: 1900-01-09 | K12: 1900-01-09 | Q12: Lowest values | R12: morning | S12: midday | T12: evening
A13: 1900-01-10 | F13: 1900-01-10 | K13: 1900-01-10 | Q13: Systolic | R13: =MIN($B$4:$B$34) -> 131 | S13: =MIN($G$4:$G$34) -> 137 | T13: =MIN($L$4:$L$34) -> 128
A14: 1900-01-11 | F14: 1900-01-11 | K14: 1900-01-11 | Q14: Diastolic | R14: =MIN($C$4:$C$34) -> 85 | S14: =MIN($H$4:$H$34) -> 87 | T14: =MIN($M$4:$M$34) -> 82
A15: 1900-01-12 | F15: 1900-01-12 | K15: 1900-01-12 | Q15: Pulse | R15: =MIN($D$4:$D$34) -> 95 | S15: =MIN($I$4:$I$34) -> 87 | T15: =MIN($N$4:$N$34) -> 99
A16: 1900-01-13 | F16: 1900-01-13 | K16: 1900-01-13
A17: 1900-01-14 | F17: 1900-01-14 | K17: 1900-01-14
A18: 1900-01-15 | F18: 1900-01-15 | K18: 1900-01-15
A19: 1900-01-16 | F19: 1900-01-16 | K19: 1900-01-16
A20: 1900-01-17 | F20: 1900-01-17 | K20: 1900-01-17
A21: 1900-01-18 | F21: 1900-01-18 | K21: 1900-01-18
A22: 1900-01-19 | F22: 1900-01-19 | K22: 1900-01-19
A23: 1900-01-20 | F23: 1900-01-20 | K23: 1900-01-20
A24: 1900-01-21 | F24: 1900-01-21 | K24: 1900-01-21
A25: 1900-01-22 | F25: 1900-01-22 | K25: 1900-01-22
A26: 1900-01-23 | F26: 1900-01-23 | K26: 1900-01-23
A27: 1900-01-24 | F27: 1900-01-24 | K27: 1900-01-24
A28: 1900-01-25 | F28: 1900-01-25 | K28: 1900-01-25
A29: 1900-01-26 | F29: 1900-01-26 | K29: 1900-01-26
A30: 1900-01-27 | F30: 1900-01-27 | K30: 1900-01-27
A31: 1900-01-28 | F31: 1900-01-28 | K31: 1900-01-28
A32: 1900-01-29 | F32: 1900-01-29 | K32: 1900-01-29
A33: 1900-01-30 | F33: 1900-01-30 | K33: 1900-01-30
A34: 1900-01-31 | F34: 1900-01-31 | K34: 1900-01-31

Sheet October
A1: 1
A2: morning | F2: midday | K2: evening | Q2: Average values | R2: morning | S2: midday | T2: evening
A3: Day | B3: SYS | C3: DIA | D3: Pulse | F3: Day | G3: SYS | H3: DIA | I3: Pulse | K3: Day | L3: SYS | M3: DIA | N3: Pulse | Q3: Systolic | R3: =AVERAGE($B$4:$B$34) -> 131 | S3: =AVERAGE($G$4:$G$34) -> 137 | T3: =AVERAGE($L$4:$L$34) -> 128
A4: =DATE(Overview!$B$2,October!A1,1) -> 1900-01-01 | B4: 131 | C4: 85 | D4: 95 | F4: =DATE(Overview!$B$2,October!$A$1,1) -> 1900-01-01 | G4: 137 | H4: 87 | I4: 87 | K4: =DATE(Overview!$B$2,October!$A$1,1) -> 1900-01-01 | L4: 128 | M4: 82 | N4: 99 | Q4: Diastolic | R4: =AVERAGE($C$4:$C$34) -> 85 | S4: =AVERAGE($H$4:$H$34) -> 87 | T4: =AVERAGE($M$4:$M$34) -> 82
A5: =A4+1 -> 1900-01-02 | F5: =F4+1 -> 1900-01-02 | K5: =K4+1 -> 1900-01-02 | Q5: Pulse | R5: =AVERAGE($D$4:$D$34) -> 95 | S5: =AVERAGE($I$4:$I$34) -> 87 | T5: =AVERAGE($N$4:$N$34) -> 99
A6: 1900-01-03 | F6: 1900-01-03 | J6: 110 | K6: 1900-01-03
A7: 1900-01-04 | F7: 1900-01-04 | K7: 1900-01-04 | Q7: Highest values | R7: morning | S7: midday | T7: evening
A8: 1900-01-05 | F8: 1900-01-05 | K8: 1900-01-05 | Q8: Systolic | R8: =MAX($B$4:$B$34) -> 131 | S8: =MAX($G$4:$G$34) -> 137 | T8: =MAX($L$4:$L$34) -> 128
A9: 1900-01-06 | F9: 1900-01-06 | K9: 1900-01-06 | Q9: Diastolic | R9: =MAX($C$4:$C$34) -> 85 | S9: =MAX($H$4:$H$34) -> 87 | T9: =MAX($M$4:$M$34) -> 82
A10: 1900-01-07 | F10: 1900-01-07 | K10: 1900-01-07 | Q10: Pulse | R10: =MAX($D$4:$D$34) -> 95 | S10: =MAX($I$4:$I$34) -> 87 | T10: =MAX($N$4:$N$34) -> 99
A11: 1900-01-08 | F11: 1900-01-08 | K11: 1900-01-08
A12: 1900-01-09 | F12: 1900-01-09 | K12: 1900-01-09 | Q12: Lowest values | R12: morning | S12: midday | T12: evening
A13: 1900-01-10 | F13: 1900-01-10 | K13: 1900-01-10 | Q13: Systolic | R13: =MIN($B$4:$B$34) -> 131 | S13: =MIN($G$4:$G$34) -> 137 | T13: =MIN($L$4:$L$34) -> 128
A14: 1900-01-11 | F14: 1900-01-11 | K14: 1900-01-11 | Q14: Diastolic | R14: =MIN($C$4:$C$34) -> 85 | S14: =MIN($H$4:$H$34) -> 87 | T14: =MIN($M$4:$M$34) -> 82
A15: 1900-01-12 | F15: 1900-01-12 | K15: 1900-01-12 | Q15: Pulse | R15: =MIN($D$4:$D$34) -> 95 | S15: =MIN($I$4:$I$34) -> 87 | T15: =MIN($N$4:$N$34) -> 99
A16: 1900-01-13 | F16: 1900-01-13 | K16: 1900-01-13
A17: 1900-01-14 | F17: 1900-01-14 | K17: 1900-01-14
A18: 1900-01-15 | F18: 1900-01-15 | K18: 1900-01-15
A19: 1900-01-16 | F19: 1900-01-16 | K19: 1900-01-16
A20: 1900-01-17 | F20: 1900-01-17 | K20: 1900-01-17
A21: 1900-01-18 | F21: 1900-01-18 | K21: 1900-01-18
A22: 1900-01-19 | F22: 1900-01-19 | K22: 1900-01-19
A23: 1900-01-20 | F23: 1900-01-20 | K23: 1900-01-20
A24: 1900-01-21 | F24: 1900-01-21 | K24: 1900-01-21
A25: 1900-01-22 | F25: 1900-01-22 | K25: 1900-01-22
A26: 1900-01-23 | F26: 1900-01-23 | K26: 1900-01-23
A27: 1900-01-24 | F27: 1900-01-24 | K27: 1900-01-24
A28: 1900-01-25 | F28: 1900-01-25 | K28: 1900-01-25
A29: 1900-01-26 | F29: 1900-01-26 | K29: 1900-01-26
A30: 1900-01-27 | F30: 1900-01-27 | K30: 1900-01-27
A31: 1900-01-28 | F31: 1900-01-28 | K31: 1900-01-28
A32: 1900-01-29 | F32: 1900-01-29 | K32: 1900-01-29
A33: 1900-01-30 | F33: 1900-01-30 | K33: 1900-01-30
A34: 1900-01-31 | F34: 1900-01-31 | K34: 1900-01-31

Sheet November
A1: 1
A2: morning | F2: midday | K2: evening | Q2: Average values | R2: morning | S2: midday | T2: evening
A3: Day | B3: SYS | C3: DIA | D3: Pulse | F3: Day | G3: SYS | H3: DIA | I3: Pulse | K3: Day | L3: SYS | M3: DIA | N3: Pulse | Q3: Systolic | R3: =AVERAGE($B$4:$B$34) -> 131 | S3: =AVERAGE($G$4:$G$34) -> 137 | T3: =AVERAGE($L$4:$L$34) -> 128
A4: =DATE(Overview!$B$2,November!A1,1) -> 1900-01-01 | B4: 131 | C4: 85 | D4: 95 | F4: =DATE(Overview!$B$2,November!$A$1,1) -> 1900-01-01 | G4: 137 | H4: 87 | I4: 87 | K4: =DATE(Overview!$B$2,November!$A$1,1) -> 1900-01-01 | L4: 128 | M4: 82 | N4: 99 | Q4: Diastolic | R4: =AVERAGE($C$4:$C$34) -> 85 | S4: =AVERAGE($H$4:$H$34) -> 87 | T4: =AVERAGE($M$4:$M$34) -> 82
A5: =A4+1 -> 1900-01-02 | F5: =F4+1 -> 1900-01-02 | K5: =K4+1 -> 1900-01-02 | Q5: Pulse | R5: =AVERAGE($D$4:$D$34) -> 95 | S5: =AVERAGE($I$4:$I$34) -> 87 | T5: =AVERAGE($N$4:$N$34) -> 99
A6: 1900-01-03 | F6: 1900-01-03 | J6: 110 | K6: 1900-01-03
A7: 1900-01-04 | F7: 1900-01-04 | K7: 1900-01-04 | Q7: Highest values | R7: morning | S7: midday | T7: evening
A8: 1900-01-05 | F8: 1900-01-05 | K8: 1900-01-05 | Q8: Systolic | R8: =MAX($B$4:$B$34) -> 131 | S8: =MAX($G$4:$G$34) -> 137 | T8: =MAX($L$4:$L$34) -> 128
A9: 1900-01-06 | F9: 1900-01-06 | K9: 1900-01-06 | Q9: Diastolic | R9: =MAX($C$4:$C$34) -> 85 | S9: =MAX($H$4:$H$34) -> 87 | T9: =MAX($M$4:$M$34) -> 82
A10: 1900-01-07 | F10: 1900-01-07 | K10: 1900-01-07 | Q10: Pulse | R10: =MAX($D$4:$D$34) -> 95 | S10: =MAX($I$4:$I$34) -> 87 | T10: =MAX($N$4:$N$34) -> 99
A11: 1900-01-08 | F11: 1900-01-08 | K11: 1900-01-08
A12: 1900-01-09 | F12: 1900-01-09 | K12: 1900-01-09 | Q12: Lowest values | R12: morning | S12: midday | T12: evening
A13: 1900-01-10 | F13: 1900-01-10 | K13: 1900-01-10 | Q13: Systolic | R13: =MIN($B$4:$B$34) -> 131 | S13: =MIN($G$4:$G$34) -> 137 | T13: =MIN($L$4:$L$34) -> 128
A14: 1900-01-11 | F14: 1900-01-11 | K14: 1900-01-11 | Q14: Diastolic | R14: =MIN($C$4:$C$34) -> 85 | S14: =MIN($H$4:$H$34) -> 87 | T14: =MIN($M$4:$M$34) -> 82
A15: 1900-01-12 | F15: 1900-01-12 | K15: 1900-01-12 | Q15: Pulse | R15: =MIN($D$4:$D$34) -> 95 | S15: =MIN($I$4:$I$34) -> 87 | T15: =MIN($N$4:$N$34) -> 99
A16: 1900-01-13 | F16: 1900-01-13 | K16: 1900-01-13
A17: 1900-01-14 | F17: 1900-01-14 | K17: 1900-01-14
A18: 1900-01-15 | F18: 1900-01-15 | K18: 1900-01-15
A19: 1900-01-16 | F19: 1900-01-16 | K19: 1900-01-16
A20: 1900-01-17 | F20: 1900-01-17 | K20: 1900-01-17
A21: 1900-01-18 | F21: 1900-01-18 | K21: 1900-01-18
A22: 1900-01-19 | F22: 1900-01-19 | K22: 1900-01-19
A23: 1900-01-20 | F23: 1900-01-20 | K23: 1900-01-20
A24: 1900-01-21 | F24: 1900-01-21 | K24: 1900-01-21
A25: 1900-01-22 | F25: 1900-01-22 | K25: 1900-01-22
A26: 1900-01-23 | F26: 1900-01-23 | K26: 1900-01-23
A27: 1900-01-24 | F27: 1900-01-24 | K27: 1900-01-24
A28: 1900-01-25 | F28: 1900-01-25 | K28: 1900-01-25
A29: 1900-01-26 | F29: 1900-01-26 | K29: 1900-01-26
A30: 1900-01-27 | F30: 1900-01-27 | K30: 1900-01-27
A31: 1900-01-28 | F31: 1900-01-28 | K31: 1900-01-28
A32: 1900-01-29 | F32: 1900-01-29 | K32: 1900-01-29
A33: 1900-01-30 | F33: 1900-01-30 | K33: 1900-01-30
A34: 1900-01-31 | F34: 1900-01-31 | K34: 1900-01-31

Sheet December
A1: 1
A2: morning | F2: midday | K2: evening | Q2: Average values | R2: morning | S2: midday | T2: evening
A3: Day | B3: SYS | C3: DIA | D3: Pulse | F3: Day | G3: SYS | H3: DIA | I3: Pulse | K3: Day | L3: SYS | M3: DIA | N3: Pulse | Q3: Systolic | R3: =AVERAGE($B$4:$B$34) -> 131 | S3: =AVERAGE($G$4:$G$34) -> 137 | T3: =AVERAGE($L$4:$L$34) -> 128
A4: =DATE(Overview!$B$2,December!A1,1) -> 1900-01-01 | B4: 131 | C4: 85 | D4: 95 | F4: =DATE(Overview!$B$2,December!$A$1,1) -> 1900-01-01 | G4: 137 | H4: 87 | I4: 87 | K4: =DATE(Overview!$B$2,December!$A$1,1) -> 1900-01-01 | L4: 128 | M4: 82 | N4: 99 | Q4: Diastolic | R4: =AVERAGE($C$4:$C$34) -> 85 | S4: =AVERAGE($H$4:$H$34) -> 87 | T4: =AVERAGE($M$4:$M$34) -> 82
A5: =A4+1 -> 1900-01-02 | F5: =F4+1 -> 1900-01-02 | K5: =K4+1 -> 1900-01-02 | Q5: Pulse | R5: =AVERAGE($D$4:$D$34) -> 95 | S5: =AVERAGE($I$4:$I$34) -> 87 | T5: =AVERAGE($N$4:$N$34) -> 99
A6: 1900-01-03 | F6: 1900-01-03 | J6: 110 | K6: 1900-01-03
A7: 1900-01-04 | F7: 1900-01-04 | K7: 1900-01-04 | Q7: Highest values | R7: morning | S7: midday | T7: evening
A8: 1900-01-05 | F8: 1900-01-05 | K8: 1900-01-05 | Q8: Systolic | R8: =MAX($B$4:$B$34) -> 131 | S8: =MAX($G$4:$G$34) -> 137 | T8: =MAX($L$4:$L$34) -> 128
A9: 1900-01-06 | F9: 1900-01-06 | K9: 1900-01-06 | Q9: Diastolic | R9: =MAX($C$4:$C$34) -> 85 | S9: =MAX($H$4:$H$34) -> 87 | T9: =MAX($M$4:$M$34) -> 82
A10: 1900-01-07 | F10: 1900-01-07 | K10: 1900-01-07 | Q10: Pulse | R10: =MAX($D$4:$D$34) -> 95 | S10: =MAX($I$4:$I$34) -> 87 | T10: =MAX($N$4:$N$34) -> 99
A11: 1900-01-08 | F11: 1900-01-08 | K11: 1900-01-08
A12: 1900-01-09 | F12: 1900-01-09 | K12: 1900-01-09 | Q12: Lowest values | R12: morning | S12: midday | T12: evening
A13: 1900-01-10 | F13: 1900-01-10 | K13: 1900-01-10 | Q13: Systolic | R13: =MIN($B$4:$B$34) -> 131 | S13: =MIN($G$4:$G$34) -> 137 | T13: =MIN($L$4:$L$34) -> 128
A14: 1900-01-11 | F14: 1900-01-11 | K14: 1900-01-11 | Q14: Diastolic | R14: =MIN($C$4:$C$34) -> 85 | S14: =MIN($H$4:$H$34) -> 87 | T14: =MIN($M$4:$M$34) -> 82
A15: 1900-01-12 | F15: 1900-01-12 | K15: 1900-01-12 | Q15: Pulse | R15: =MIN($D$4:$D$34) -> 95 | S15: =MIN($I$4:$I$34) -> 87 | T15: =MIN($N$4:$N$34) -> 99
A16: 1900-01-13 | F16: 1900-01-13 | K16: 1900-01-13
A17: 1900-01-14 | F17: 1900-01-14 | K17: 1900-01-14
A18: 1900-01-15 | F18: 1900-01-15 | K18: 1900-01-15
A19: 1900-01-16 | F19: 1900-01-16 | K19: 1900-01-16
A20: 1900-01-17 | F20: 1900-01-17 | K20: 1900-01-17
A21: 1900-01-18 | F21: 1900-01-18 | K21: 1900-01-18
A22: 1900-01-19 | F22: 1900-01-19 | K22: 1900-01-19
A23: 1900-01-20 | F23: 1900-01-20 | K23: 1900-01-20
A24: 1900-01-21 | F24: 1900-01-21 | K24: 1900-01-21
A25: 1900-01-22 | F25: 1900-01-22 | K25: 1900-01-22
A26: 1900-01-23 | F26: 1900-01-23 | K26: 1900-01-23
A27: 1900-01-24 | F27: 1900-01-24 | K27: 1900-01-24
A28: 1900-01-25 | F28: 1900-01-25 | K28: 1900-01-25
A29: 1900-01-26 | F29: 1900-01-26 | K29: 1900-01-26
A30: 1900-01-27 | F30: 1900-01-27 | K30: 1900-01-27
A31: 1900-01-28 | F31: 1900-01-28 | K31: 1900-01-28
A32: 1900-01-29 | F32: 1900-01-29 | K32: 1900-01-29
A33: 1900-01-30 | F33: 1900-01-30 | K33: 1900-01-30
A34: 1900-01-31 | F34: 1900-01-31 | K34: 1900-01-31
